fUSD/lending_fUSD_20240213
["ID","MTS","AMOUNT","RATE_DAILY","PERIOD"]
[313903560,1707798638541,-177.27,0.00025097,2]
[313903561,1707798638550,-167.47,0.00025192,2]
[313903562,1707798638560,-2875.45,0.00025197,2]
[313903563,1707798638570,-157.60276254,0.00025199,2]
[313903564,1707798638579,-250.0,0.00025227,2]
[313903565,1707798638589,-250.0,0.00025306,2]
[313903566,1707798638598,-1210.74,0.00025354,2]
[313903567,1707798638608,-345.29,0.00025583,2]
[313903568,1707798638618,-177.27,0.00025645,2]
[313903569,1707798638628,-157.60276254,0.00025677,2]
[313903570,1707798638641,-17775.0,0.00026,2]
[313903571,1707798638652,-14718.57839999,0.00026097,2]
[313903573,1707798638662,-942.44214796,0.00026097,2]
[313903581,1707798638716,-4641.28999685,0.00026097,2]
[313903583,1707798638729,-694.2433052,0.00026097,2]
[313903588,1707798638759,-23118.90805825,0.00026097,2]
[313903638,1707798640862,-1311.24752842,0.00026097,2]
[313903639,1707798641073,-668.18905954,0.00026097,2]
[313903668,1707798643400,-4048.48132805,0.00026097,2]
[313903669,1707798643410,-2149.74705933,0.00026098,2]
[313903670,1707798643424,-1513.28998834,0.00026098,2]
[313903671,1707798643456,-2030.10710238,0.00026098,2]
[313903672,1707798643470,-2609.3679265,0.00026098,2]
[313903682,1707798643807,-1409.26507152,0.00026098,2]
[313903683,1707798643831,-6334.65840625,0.00026098,2]
[313903695,1707798646266,-155.0,0.00026096,2]
[313903696,1707798646275,-6145.45862783,0.00026098,2]
[313903697,1707798646863,-26551.21811318,0.00026098,2]
[313903698,1707798646873,-157.60276254,0.00026155,2]
[313903699,1707798646883,-177.27,0.00026193,2]
[313903700,1707798646892,-157.60276254,0.00026633,2]
[313903701,1707798646901,-353.8,0.00026741,2]
[313903702,1707798646911,-1000.0,0.00026933,2]
[313903703,1707798646920,-400.0,0.00027,3]
[313903704,1707798646930,-165.54378098,0.00027083,2]
[313903705,1707798646939,-157.60276254,0.00027111,2]
[313903706,1707798646948,-1000.0,0.00027183,3]
[313903707,1707798646957,-5282.54240023,0.00027183,3]
[313903708,1707798646969,-3717.82834325,0.00027183,3]
[313903709,1707798646978,-4050.16683456,0.00027183,3]
[313903710,1707798646987,-1000.0,0.00027183,3]
[313903711,1707798646997,-284.97182517,0.00027183,3]
[313903712,1707798647007,-1000.0,0.00027183,3]
[313903713,1707798647016,-1523.59369017,0.00027183,3]
[313903714,1707798647025,-181.23119088,0.00027183,3]
[313903715,1707798647035,-157.64364253,0.00027183,3]
[313903716,1707798647044,-1000.0,0.00027183,3]
[313903717,1707798647054,-2170.82,0.00027571,2]
[313903718,1707798647063,-157.60276254,0.00027589,2]
[313903719,1707798647073,-345.29,0.00027847,2]
[313903720,1707798647082,-167.47,0.00027932,2]
[313903721,1707798647095,-157.60276254,0.00028067,2]
[313903722,1707798647104,-44262.05561757,0.0002807,7]
[313903723,1707798647124,-3313.68237718,0.0002807,7]
[313903758,1707799831675,-181.6052885,0.00024999,2]
[313903759,1707799831685,-350.0,0.00025,3]
[313903760,1707799831695,-3387.13746973,0.00025986,2]
[313903761,1707799831711,-380.49190557,0.00025986,2]
[313903762,1707799831735,-1447.8223341,0.00025986,2]
[313903763,1707799831744,-157.60276254,0.00025986,2]
[313903764,1707799831753,-17149.77363249,0.00025987,2]
[313903765,1707799831763,-305.21482892,0.00025995,2]
[313903766,1707799831772,-182.2783444,0.00025995,2]
[313903768,1707799831781,-565.0945106,0.00025995,2]
[313903769,1707799831790,-4222.7253,0.00025997,2]
[313903770,1707799831799,-92183.6733,0.00025997,2]
[313903771,1707799831808,-2933.37692121,0.00026095,2]
[313903772,1707799831818,-158.31816794,0.00026095,2]
[313903773,1707799831827,-323.00562077,0.00026095,2]
[313903774,1707799831835,-281.28122714,0.00026095,2]
[313903775,1707799831845,-235.3443745,0.00026095,2]
[313903776,1707799831855,-164.09921097,0.00026095,2]
[313903777,1707799831864,-2156.58332291,0.00026095,2]
[313903778,1707799831874,-46915.76664451,0.00026095,2]
[313903784,1707799837455,-208.0,0.00025753,2]
[313903785,1707799837465,-200.34832482,0.00026095,3]
[313903786,1707799837475,-3738.92040078,0.00026095,2]
[313903787,1707799837565,-364.13822102,0.00026095,2]
[313903788,1707799837577,-25454.22634308,0.00026095,2]
[313903789,1707799837620,-4694.71398521,0.00026095,2]
[313903790,1707799837731,-475.29420229,0.00026095,2]
[313903791,1707799837785,-570.36416654,0.00026095,2]
[313903792,1707799837797,-550.13251355,0.00026095,2]
[313903793,1707799837809,-3661.82821036,0.00026095,2]
[313903794,1707799837821,-1562.42057595,0.00026095,2]
[313903798,1707799840977,-999.37003607,0.00026095,2]
[313903812,1707799842467,-2224.46772822,0.00026095,2]
[313903813,1707799842634,-928.36095711,0.00026095,2]
[313903814,1707799842647,-1290.79011453,0.00026095,2]
[313903815,1707799842660,-557.15339672,0.00026095,2]
[313903816,1707799842676,-2427.97753129,0.00026095,2]
[313903820,1707799845551,-132585.83961983,0.00026095,2]
[313903821,1707799845561,-231.04855052,0.00026095,2]
[313903822,1707799845571,-499.99,0.00026095,2]
[313903823,1707799845580,-198.95620509,0.00026096,2]
[313903824,1707799845590,-224.06504835,0.00026096,2]
[313903825,1707799845599,-1000.0,0.00026096,2]
[313903826,1707799845609,-15644.1574054,0.00026096,2]
[313903827,1707799845628,-113140.169182,0.00026097,2]
[313903828,1707799856909,3443.44788846,0.0001957,2]
[313903829,1707799892901,2186.2499822,0.00019571,2]
[313903833,1707800884113,208.0,0.00022753,2]
[313903854,1707801031675,-386.46,0.00023338,2]
[313903855,1707801031687,-305.21545109,0.00025,2]
[313903856,1707801031698,-659.47170738,0.00025155,2]
[313903857,1707801031709,-698.00629012,0.00025156,2]
[313903858,1707801031720,-178.24743154,0.00025157,2]
[313903859,1707801031731,-796.92,0.00025196,2]
[313903860,1707801031742,-183.01,0.00025238,2]
[313903861,1707801031754,-234.52,0.00025255,2]
[313903862,1707801031765,-250.0,0.00025257,2]
[313903863,1707801031778,-1329.01,0.00025274,2]
[313903864,1707801031790,-150.0,0.00025395,2]
[313903865,1707801031801,-13164.18,0.00025396,2]
[313903866,1707801031812,-862.6,0.00025473,2]
[313903867,1707801031824,-178.24743135,0.00025572,2]
[313903868,1707801031835,-386.46,0.00025602,2]
[313903869,1707801031846,-723.32,0.0002575,2]
[313903870,1707801031858,-719.19,0.0002575,2]
[313903871,1707801031871,-9999.99,0.00025807,2]
[313903872,1707801031881,-150.0,0.00025907,2]
[313903873,1707801031893,-775.59,0.00025976,2]
[313903874,1707801031904,-178.24743135,0.00025988,2]
[313903875,1707801031915,-469.2636,0.00025995,2]
[313903876,1707801031926,-313.9906,0.00025997,2]
[313903877,1707801031937,-82197.71656076,0.00025997,2]
[313903884,1707801032698,-3788.43503924,0.00025997,2]
[313903885,1707801032707,-2776.0,0.00026,2]
[313903886,1707801032716,-167.51,0.00026049,2]
[313903887,1707801032726,-446.64298784,0.00026093,2]
[313903888,1707801032735,-269.46876875,0.00026093,2]
[313903889,1707801032744,-211.9601577,0.00026093,7]
[313903890,1707801032753,-547.69355063,0.00026094,2]
[313903891,1707801032762,-145.82035696,0.00026094,2]
[313903892,1707801032775,-10.26144097,0.00026094,2]
[313903893,1707801032786,-231.33733691,0.00026094,2]
[313903894,1707801032795,-1944.83384871,0.00026094,2]
[313903895,1707801032825,-21.11674766,0.00026094,2]
[313903896,1707801032834,-181.46611246,0.00026094,2]
[313903897,1707801032844,-155.49721256,0.00026096,2]
[313903898,1707801032856,-147.49317734,0.00026097,2]
[313903899,1707801032877,-4874.2423433,0.00026097,2]
[313903900,1707801032891,-51233.47291459,0.00026097,2]
[313903901,1707801032901,-2000.0,0.00026097,2]
[313903902,1707801032911,-200.0,0.00026097,2]
[313903903,1707801032920,-623.47938906,0.00026123,2]
[313903904,1707801032930,-1000.0,0.00026223,2]
[313903905,1707801032939,-250.0,0.00026231,2]
[313903906,1707801032949,-2468.2,0.0002624,2]
[313903907,1707801032958,-484.58,0.00026243,2]
[313903908,1707801032967,-1809.01,0.00026252,2]
[313903909,1707801032977,-189.38,0.00026268,10]
[313903910,1707801032986,-500.0,0.00026281,2]
[313903911,1707801032995,-2000.0,0.00026358,2]
[313903912,1707801033006,-200.0,0.00026358,2]
[313903913,1707801033015,-178.24743135,0.00026403,2]
[313903914,1707801033024,-160.0,0.00026419,2]
[313903915,1707801033034,-234.52,0.00026517,2]
[313903916,1707801033043,-2000.0,0.00026622,2]
[313903917,1707801033053,-200.0,0.00026622,2]
[313903918,1707801033062,-174.26,0.00026633,2]
[313903919,1707801033071,-160.0,0.00026649,2]
[313903920,1707801033081,-178.24743135,0.00026819,2]
[313903921,1707801033090,-160.0,0.00026878,2]
[313903922,1707801033100,-2000.0,0.00026888,2]
[313903923,1707801033110,-200.0,0.00026888,2]
[313903924,1707801033119,-400.0,0.00027,3]
[313903925,1707801033128,-160.0,0.00027108,2]
[313903926,1707801033137,-2000.0,0.00027157,2]
[313903927,1707801033147,-200.0,0.00027157,2]
[313903928,1707801033157,-1000.0,0.00027183,3]
[313903929,1707801033167,-455.39228712,0.00027183,3]
[313903930,1707801033176,-1250.78967434,0.00027183,3]
[313903931,1707801033185,-238.79653319,0.00027183,3]
[313903932,1707801033194,-712.13435482,0.00027183,3]
[313903933,1707801033203,-2080.85527282,0.00027183,3]
[313903934,1707801033212,-1000.0,0.00027183,3]
[313903935,1707801033222,-620.9314141,0.00027183,3]
[313903936,1707801033231,-369.91849378,0.00027183,3]
[313903937,1707801033241,-309.16042471,0.00027183,3]
[313903938,1707801033251,-254.47102022,0.00027183,3]
[313903939,1707801033260,-253.80069266,0.00027183,3]
[313903940,1707801033269,-1000.0,0.00027183,3]
[313903941,1707801033279,-1000.0,0.00027183,3]
[313903942,1707801033288,-296.29937623,0.00027183,3]
[313903943,1707801033298,-200.0,0.00027183,2]
[313903944,1707801033307,-344.0,0.00027183,2]
[313903945,1707801033317,-178.24743135,0.00027234,2]
[313903946,1707801033326,-160.0,0.00027337,2]
[313903947,1707801033335,-182.37,0.00027397,2]
[313903948,1707801033344,-1917.45362302,0.000274,2]
[313903949,1707801033354,-623.47938906,0.00027406,2]
[313903950,1707801033363,-208.0,0.00027409,9]
[313903951,1707801033372,-164.22,0.00027486,2]
[313903952,1707801033381,-182.37,0.00027556,2]
[313903953,1707801033390,-160.0,0.00027567,2]
[313903954,1707801033400,-178.24743135,0.0002765,2]
[313903955,1707801033409,-182.37,0.00027714,2]
[313903956,1707801033419,-234.52,0.0002778,2]
[313903957,1707801033429,-160.0,0.00027796,2]
[313903958,1707801033439,-386.46,0.00027866,2]
[313903959,1707801033448,-182.37,0.00027872,2]
[313903960,1707801033457,-484.58,0.00027886,2]
[313903961,1707801033467,-2253.43221238,0.00028,2]
[313903962,1707801033476,-182.37,0.0002803,2]
[313903963,1707801033485,-178.24743135,0.00028065,2]
[313903964,1707801033497,-1597.65224811,0.00028069,2]
[313903965,1707801033507,-3708.11920363,0.00028069,4]
[313903966,1707801033517,-2424.26200525,0.0002807,7]
[313903967,1707801033527,-2608.47313501,0.0002807,2]
[313903968,1707801033536,-2000.0,0.0002807,2]
[313903969,1707801033545,-200.0,0.0002807,2]
[313903970,1707801033555,-2000.0,0.0002807,2]
[313903971,1707801033564,-1965.65380961,0.000281,2]
[313903972,1707801033574,-19832.0,0.00028135,2]
[313903973,1707801033583,-746.923,0.00028135,2]
[313903974,1707801033592,-2288.0,0.00028135,2]
[313903975,1707801033601,-5141.346,0.00028135,2]
[313903976,1707801033611,-1036.0,0.00028135,2]
[313903977,1707801033620,-136.3599096,0.00028189,2]
[313903984,1707801037729,-1000.0,0.00027183,3]
[313903985,1707801037739,-46.0100904,0.00028189,2]
[313903986,1707801037748,-182.37,0.00028347,2]
[313903987,1707801037758,-2000.0,0.00028351,2]
[313903988,1707801037767,-200.0,0.00028351,2]
[313903989,1707801037778,-2000.0,0.00028351,2]
[313903990,1707801037789,-178.24743135,0.0002848,2]
[313903991,1707801037798,-182.37,0.00028505,2]
[313903992,1707801037807,-218.49698283,0.00028534,6]
[313903993,1707801037820,-1003.32448153,0.00028534,6]
[313903994,1707801038001,-1169.01662378,0.00028534,6]
[313903995,1707801038010,-200.0,0.00028634,2]
[313903996,1707801038020,-182.37,0.00028664,2]
[313903997,1707801038029,-357.23470872,0.00028689,2]
[313904044,1707801041149,-266.24468034,0.00028689,2]
[313904045,1707801041160,-182.37,0.00028822,2]
[313904046,1707801041169,-800.0,0.00028849,2]
[313904047,1707801041178,-500.0,0.0002889,2]
[313904048,1707801041188,-178.24743135,0.00028896,2]
[313904049,1707801041196,-200.0,0.00028921,2]
[313904050,1707801041206,-450.0,0.00029,3]
[313904051,1707801041216,-4009.37987894,0.00029,2]
[313904052,1707801041226,-234.52,0.00029043,2]
[313904053,1707801041235,-200.0,0.00029059,2]
[313904054,1707801041245,-841.0,0.00029059,2]
[313904055,1707801041255,-2833.0,0.00029059,2]
[313904056,1707801041266,-952.0,0.00029059,2]
[313904057,1707801041275,-1232.0,0.00029059,2]
[313904058,1707801041285,-217.298,0.00029059,2]
[313904059,1707801041294,-707.0,0.00029059,2]
[313904060,1707801041304,-1253.0,0.00029059,2]
[313904061,1707801041313,-749.206,0.00029059,2]
[313904062,1707801041322,-431.165,0.00029059,2]
[313904063,1707801041332,-1134.382,0.00029059,2]
[313904064,1707801041342,-209.209,0.00029059,2]
[313904065,1707801041351,-863.357,0.00029059,2]
[313904066,1707801041361,-343.0,0.00029059,2]
[313904067,1707801041370,-150.0,0.00029059,2]
[313904068,1707801041379,-455.422,0.00029059,2]
[313904069,1707801041389,-178.24743135,0.00029311,2]
[313904070,1707801041399,-1000.0,0.00029501,2]
[313904071,1707801041410,-484.58,0.0002953,2]
[313904072,1707801041420,-152.79512773,0.00029699,2]
[313904073,1707801041429,-178.24743135,0.00029727,2]
[313904074,1707801041439,-4013.764111,0.000298,2]
[313904075,1707801041449,-4065.61,0.00029815,2]
[313904076,1707801041458,-623.47938906,0.00029972,2]
[313904077,1707801041468,-150.01,0.0002998,2]
[313904078,1707801041478,-1209.05097629,0.0002998,2]
[313904079,1707801041490,-500.0,0.00029986,2]
[313904080,1707801041499,-720.94880131,0.0003,4]
[313904081,1707801041509,-155.0,0.0003,2]
[313904082,1707801041519,-1195.57957858,0.0003,5]
[313904083,1707801041529,-9690.3204777,0.0003,2]
[313904084,1707801041539,-150.0,0.0003,30]
[313904085,1707801041548,-1604.83648142,0.0003,4]
[313904086,1707801041558,-11810.48167495,0.0003,4]
[313904087,1707801041568,-4150.21752863,0.0003,3]
[313904104,1707801043096,-556.75828576,0.0003,3]
[313904106,1707801043116,-1221.1185338,0.0003,3]
[313904107,1707801043129,-599.05213415,0.0003,3]
[313904108,1707801043141,-5015.30422251,0.0003,3]
[313904109,1707801043162,-1707.12749173,0.0003,3]
[313904112,1707801045589,-364.69977587,0.0003,3]
[313904113,1707801045752,-572.95084273,0.0003,3]
[313904114,1707801046066,-434.81248949,0.0003,3]
[313904133,1707802231829,-216.73557616,0.00024881,2]
[313904134,1707802231839,-301.98919497,0.00024881,2]
[313904135,1707802231849,-1408.83148395,0.00024882,2]
[313904136,1707802231859,-420.44975688,0.00024882,2]
[313904137,1707802231869,-3697.69464102,0.00024883,4]
[313904138,1707802231878,-158.4421612,0.000249,2]
[313904139,1707802231888,-350.0,0.00025,3]
[313904140,1707802231897,-698.00629012,0.00025,2]
[313904141,1707802231906,-158.4421612,0.00025882,2]
[313904142,1707802231918,-355.0,0.0002589,2]
[313904143,1707802231927,-15997.0,0.00026,2]
[313904144,1707802231936,-158.4421612,0.00026863,2]
[313904145,1707802231947,-400.0,0.00027,3]
[313904146,1707802231957,-500.0,0.00027048,2]
[313904147,1707802231966,-202.50834173,0.00027183,3]
[313904148,1707802231975,-179.61269081,0.00027183,3]
[313904149,1707802231984,-246.48657387,0.00027183,3]
[313904150,1707802231994,-194.1736372,0.00027183,3]
[313904151,1707802232003,-505.45019947,0.00027596,2]
[313904152,1707802232013,-242.29,0.00027807,2]
[313904153,1707802232023,-158.4421612,0.00027845,2]
[313904154,1707802232032,-250.0,0.0002786,2]
[313904155,1707802232042,-398.46,0.00027882,2]
[313904156,1707802232052,-4721.29,0.00027926,2]
[313904157,1707802232061,-3901.19139808,0.00028045,2]
[313904158,1707802232071,-13485.99031569,0.00028048,2]
[313904159,1707802232080,-600.0,0.00028109,2]
[313904160,1707802232090,-355.0,0.00028154,2]
[313904161,1707802232099,-155.0,0.00028189,2]
[313904162,1707802232109,-2239.93058583,0.00028189,2]
[313904163,1707802232119,-1507.5,0.00028222,2]
[313904164,1707802232132,-164.22,0.00028323,2]
[313904165,1707802232142,-240.21454673,0.00028417,6]
[313904166,1707802232151,-400.0,0.00028418,2]
[313904168,1707802232161,-158.4421612,0.00028827,2]
[313904170,1707802232171,-3445.14339735,0.00028857,2]
[313904171,1707802232182,-172.62596873,0.00028858,2]
[313904172,1707802232191,-343.0,0.00028859,2]
[313904173,1707802232202,-150.0,0.00028859,2]
[313904174,1707802232213,-2286.0,0.00028859,2]
[313904175,1707802232222,-1435.16598123,0.00028859,2]
[313904176,1707802232253,-357.93008844,0.00028859,2]
[313904177,1707802232266,-2958.13277643,0.00028859,2]
[313904178,1707802232277,-907.0,0.00028859,2]
[313904179,1707802232296,-7531.64846015,0.00028859,2]
[313904196,1707802237931,-2202.97219321,0.00028859,2]
[313904197,1707802238026,-2423.84705,0.00028859,2]
[313904198,1707802238039,-630.775,0.00028859,2]
[313904199,1707802238135,-387.20001944,0.00028859,2]
[313904200,1707802238147,-987.3284311,0.00028859,2]
[313904201,1707802238157,-121.84700143,0.00028859,2]
[313904208,1707802240571,-830.15299857,0.00028859,2]
[313904209,1707802240582,-152.0890406,0.00028859,2]
[313904210,1707802240625,-661.9109594,0.00028859,2]
[313904211,1707802240634,-814.95181995,0.00028859,2]
[313904212,1707802240685,-252.2400575,0.00028859,2]
[313904213,1707802240697,-571.23757315,0.00028859,2]
[313904214,1707802240710,-558.89350208,0.00028859,2]
[313904215,1707802240724,-514.24533093,0.00028859,2]
[313904216,1707802240746,-119.43171639,0.00028859,2]
[313904217,1707802240756,-1036.0,0.00028859,2]
[313904218,1707802240766,-216.0,0.00028859,2]
[313904219,1707802240775,-1231.0,0.00028859,2]
[313904220,1707802240785,-1253.0,0.00028859,2]
[313904221,1707802240794,-827.40333921,0.00028877,2]
[313904224,1707802243963,-465.15169898,0.00028877,2]
[313904225,1707802243975,-35.93528489,0.00028877,2]
[313904226,1707802243985,-297.38422215,0.0002889,2]
[313904227,1707802244000,-202.61577785,0.0002889,2]
[313904228,1707802244010,-450.0,0.00029,3]
[313904229,1707802244019,-507.29,0.00029009,2]
[313904230,1707802244028,-208.0,0.00029065,2]
[313904231,1707802244038,-646.32,0.00029096,2]
[313904232,1707802244047,-281.85422215,0.00029183,2]
[313904233,1707802244065,-493.81600044,0.00029183,2]
[313904234,1707802244238,-552.82010049,0.00029183,2]
[313904235,1707802244247,-1328.49032308,0.00029316,2]
[313904236,1707802244256,-242.29,0.00029451,2]
[313904237,1707802244266,-152.79512773,0.00029699,2]
[313904238,1707802244276,-1328.49032308,0.00029718,2]
[313904239,1707802244286,-200.0,0.00029751,2]
[313904240,1707802244295,-202.259037,0.00029751,3]
[313904241,1707802244304,-200.0,0.00029759,2]
[313904242,1707802244314,-800.0,0.00029759,2]
[313904243,1707802244323,-800.0,0.0002976,2]
[313904244,1707802244332,-158.4421612,0.00029808,2]
[313904245,1707802244341,-300.0,0.000299,2]
[313904246,1707802244350,-155.0,0.000299,2]
[313904247,1707802244360,-177.27,0.000299,2]
[313904248,1707802244370,-514.11,0.000299,7]
[313904249,1707802244379,-250.0,0.000299,2]
[313904250,1707802244388,-1062.47230332,0.000299,2]
[313904251,1707802244397,-374.08763349,0.000299,2]
[313904253,1707802244407,-703.77795875,0.000299,4]
[313904254,1707802244416,-234.52,0.00029946,2]
[313904257,1707802244427,-544.53630009,0.00029986,2]
[313904258,1707802244436,-155.0,0.00029997,2]
[313904259,1707802244446,-2374.11834098,0.00029998,2]
[313904260,1707802244456,-783.41892674,0.00029998,2]
[313904261,1707802244465,-304.84189276,0.00029998,2]
[313904262,1707802244475,-345.94012093,0.00029998,2]
[313904263,1707802244484,-156.23161046,0.00029998,2]
[313904264,1707802244494,-155.0,0.00029998,2]
[313904265,1707802244503,-640.41658753,0.00029998,2]
[313904266,1707802244513,-305.69861775,0.00029999,2]
[313904267,1707802244522,-591.68971123,0.00029999,2]
[313904268,1707802244531,-646.04626024,0.00029999,2]
[313904269,1707802244542,-701.57707217,0.00029999,2]
[313904270,1707802244551,-390.98834999,0.00029999,2]
[313904271,1707802244561,-156.23872649,0.00029999,2]
[313904272,1707802244570,-250.98357118,0.00029999,2]
[313904273,1707802244580,-155.84931203,0.00029999,2]
[313904274,1707802244589,-806.03398419,0.00029999,2]
[313904275,1707802244599,-657.51163417,0.0003,6]
[313904276,1707802244608,-2016.41522199,0.0003,3]
[313904277,1707802244618,-3620.12149094,0.0003,2]
[313904278,1707802244644,-1524.90027628,0.00029998,4]
[313904279,1707802244657,-728.16,0.00029998,4]
[313904280,1707802245914,-512.67,0.00029998,4]
[313904281,1707802245927,-485.50120058,0.00029998,4]
[313904282,1707802245939,-440.4215832,0.00029998,4]
[313904283,1707802245949,-188.2954163,0.00029998,2]
[313904284,1707802245959,-2027.08994192,0.0003,2]
[313904285,1707802245968,-195.61104143,0.0003,4]
[313904286,1707802245978,-128.92784253,0.0003,4]
[313904287,1707802245998,-1338.8500015,0.0003,4]
[313904288,1707802246048,-1100.24639057,0.0003,4]
[313904289,1707802246058,-239.50001604,0.0003,2]
[313904290,1707802246070,-4213.80216288,0.0003,2]
[313904291,1707802246100,-77453.87604858,0.0003,2]
[313904292,1707802246113,-1418.46325213,0.0003,2]
[313904293,1707802246154,-574.8571518,0.0003,2]
[313904336,1707803432011,-298.68682809,0.00024999,2]
[313904337,1707803432024,-121.76292879,0.00024999,2]
[313904338,1707803432033,-350.0,0.00025,3]
[313904339,1707803432044,-273.14083936,0.00026956,2]
[313904340,1707803432056,-46.35916064,0.00026956,2]
[313904341,1707803432065,-261.15578167,0.00027,3]
[313904342,1707803432077,-138.84421833,0.00027,3]
[313904343,1707803432086,-235.32548833,0.00027083,2]
[313904344,1707803432097,-300.0,0.00027182,2]
[313904345,1707803432106,-150.0,0.00027182,2]
[313904346,1707803432116,-293.02016649,0.00027183,3]
[313904347,1707803432125,-245.21716585,0.00027183,3]
[313904348,1707803432135,-215.44263593,0.00027183,3]
[313904349,1707803432144,-515.01168002,0.00027183,3]
[313904350,1707803432153,-609.34976301,0.00027183,3]
[313904351,1707803432162,-1000.0,0.00027183,3]
[313904352,1707803432171,-437.17083761,0.00027183,3]
[313904353,1707803432180,-259.34417146,0.00027183,3]
[313904354,1707803432190,-161.52,0.00028612,2]
[313904355,1707803432199,-250.0,0.00028627,2]
[313904356,1707803432208,-199.23,0.00028673,2]
[313904357,1707803432218,-480.0,0.0002883,2]
[313904358,1707803432227,-1794.85,0.00028977,2]
[313904359,1707803432236,-450.0,0.00029,3]
[313904360,1707803432246,-158.4421612,0.00029217,2]
[313904361,1707803432255,-319.5,0.0002922,2]
[313904362,1707803432264,-520.0,0.0002944,2]
[313904363,1707803432274,-1337.5514632,0.00029455,2]
[313904364,1707803432283,-152.22966065,0.00029465,2]
[313904365,1707803432293,-570.71343403,0.00029465,2]
[313904366,1707803432302,-9191.03715389,0.00029467,2]
[313904367,1707803432313,-3337.61479419,0.00029467,2]
[313904368,1707803432325,-13740.50665192,0.00029467,2]
[313904369,1707803432334,-1337.5514632,0.00029664,2]
[313904371,1707803432343,-248.36056311,0.00029695,2]
[313904373,1707803432354,-152.79512773,0.00029699,2]
[313904374,1707803432363,-441.07335943,0.00029759,6]
[313904375,1707803432372,-800.0,0.00029759,2]
[313904376,1707803432382,-200.0,0.00029759,2]
[313904379,1707803432391,-158.822205,0.0002976,2]
[313904382,1707803432401,-800.0,0.0002976,2]
[313904385,1707803432410,-200.0,0.0002976,2]
[313904388,1707803432419,-956.22507297,0.00029868,2]
[313904390,1707803432428,-336.67887015,0.00029868,2]
[313904393,1707803432439,-4656.9766055,0.0002989,2]
[313904397,1707803432450,-331.7838,0.00029897,2]
[313904400,1707803432460,-615.80571395,0.00029898,4]
[313904403,1707803432469,-155.0,0.000299,2]
[313904406,1707803432479,-177.27,0.000299,2]
[313904409,1707803432488,-250.0,0.000299,2]
[313904412,1707803432497,-339.59303619,0.000299,2]
[313904415,1707803432509,-46302.16421975,0.000299,2]
[313904512,1707803439465,-864.78826453,0.000299,2]
[313904513,1707803439708,-19758.72140922,0.000299,2]
[313904514,1707803439721,-10488.451428,0.000299,2]
[313904525,1707803441066,-461.74,0.000299,2]
[313904526,1707803441111,-1362.02954899,0.000299,2]
[313904527,1707803441122,-19383.58951811,0.000299,2]
[313904528,1707803441134,-7647.18471523,0.000299,2]
[313904529,1707803441146,-312.52609998,0.000299,2]
[313904530,1707803441158,-1768.55826938,0.000299,2]
[313904531,1707803441234,-2724.44195122,0.000299,2]
[313904532,1707803441246,-6119.44966833,0.000299,2]
[313904533,1707803441257,-655.56036658,0.000299,2]
[313904534,1707803441268,-933.93757869,0.000299,2]
[313904535,1707803441279,-726.10448729,0.000299,2]
[313904536,1707803441329,-39133.8061886,0.000299,2]
[313904566,1707803443108,-152.79512773,0.00029699,2]
[313904567,1707803443117,-3500.40186648,0.000299,2]
[313904568,1707803443148,-41094.96291648,0.000299,2]
[313904569,1707803443204,-2994.41056767,0.000299,2]
[313904570,1707803443216,-1420.10342999,0.000299,2]
[313904571,1707803443260,-670.64701535,0.000299,2]
[313904572,1707803443372,-1547.60961644,0.000299,2]
[313904573,1707803443384,-935.399985,0.000299,2]
[313904574,1707803443396,-1548.15,0.000299,2]
[313904575,1707803443427,-2499.40594227,0.000299,2]
[313904582,1707803446053,-1140.9351341,0.000299,2]
[313904583,1707803446065,-1324.8,0.000299,2]
[313904584,1707803446101,-750.91727077,0.00029899,2]
[313904585,1707803446111,-4819.53726891,0.000299,2]
[313904586,1707803446156,-22520.98950722,0.000299,2]